fUSD/lending_fUSD_20260126
["ID","MTS","AMOUNT","RATE_DAILY","PERIOD"]
[403619292,1769421044344,-1000.0,0.00017432,2]
[403619293,1769421044354,-1000.0,0.00017432,2]
[403619294,1769421044363,-1000.0,0.00017432,2]
[403619295,1769421044375,-1000.0,0.00017432,2]
[403619296,1769421044385,-406.59218179,0.00017432,2]
[403619297,1769421044395,-1000.0,0.00017432,2]
[403619298,1769421044405,-1000.0,0.00017432,2]
[403619299,1769421044416,-1000.0,0.00017432,2]
[403619300,1769421044426,-1000.0,0.00017432,2]
[403619301,1769421044436,-495.48887981,0.00017432,2]
[403619302,1769421044446,-502.64656649,0.00017432,2]
[403619303,1769421044456,-300.8,0.00017452,2]
[403619304,1769421044466,-307.88,0.00017479,2]
[403619305,1769421044475,-945.51270055,0.00017491,2]
[403619306,1769421044485,-1667.99647898,0.00017491,2]
[403619307,1769421044495,-2495.22297623,0.00017491,2]
[403619308,1769421044505,-3376.1178,0.00017491,2]
[403619309,1769421044514,-500.0,0.00017499,2]
[403619310,1769421044524,-500.0,0.00017499,2]
[403619311,1769421044534,-500.0,0.00017499,2]
[403619312,1769421044544,-500.0,0.00017499,2]
[403619313,1769421044554,-500.0,0.00017499,2]
[403619314,1769421044563,-500.0,0.00017499,2]
[403619315,1769421044573,-5000.0,0.000175,2]
[403619316,1769421044584,-1100.0,0.000175,6]
[403619317,1769421044593,-2696.7,0.00017515,2]
[403619318,1769421044603,-866.0,0.00017524,2]
[403619319,1769421044613,-155.0,0.00017533,2]
[403619320,1769421044624,-315.45,0.00017534,2]
[403619321,1769421044634,-6138.82009231,0.000176,2]
[403619322,1769421044644,-1100.0,0.000176,6]
[403619323,1769421044654,-500.0,0.00017612,2]
[403619324,1769421044663,-500.0,0.00017612,2]
[403619325,1769421044674,-1000.0,0.00017619,2]
[403619326,1769421044683,-172.95,0.00017623,2]
[403619327,1769421044693,-2696.7,0.00017636,2]
[403619328,1769421044703,-607.0,0.00017636,2]
[403619329,1769421044713,-190.2,0.00017639,2]
[403619330,1769421044723,-560.38,0.00017639,2]
[403619331,1769421044733,-4887.30379414,0.0001764,2]
[403619332,1769421044742,-334.5472959,0.00017641,2]
[403619333,1769421044751,-150.5654977,0.00017668,2]
[403619334,1769421044761,-1086.0,0.0001768,2]
[403619335,1769421044770,-1086.0,0.0001768,2]
[403619336,1769421044779,-1086.0,0.0001768,2]
[403619337,1769421044789,-175.48,0.00017683,2]
[403619338,1769421044799,-500.0,0.00017688,2]
[403619339,1769421044808,-500.0,0.00017688,2]
[403619340,1769421044819,-500.0,0.00017688,2]
[403619341,1769421044829,-649.14983305,0.00017688,2]
[403619342,1769421044839,-5000.0,0.000177,2]
[403619343,1769421044849,-1662.0,0.000177,2]
[403619344,1769421044858,-1100.0,0.000177,6]
[403619345,1769421044868,-500.0,0.00017706,2]
[403619346,1769421044877,-500.0,0.00017758,2]
[403619347,1769421044887,-500.0,0.00017758,2]
[403619348,1769421044897,-500.0,0.00017758,2]
[403619349,1769421044908,-2696.7,0.00017758,2]
[403619350,1769421044920,-500.0,0.00017767,2]
[403619351,1769421044929,-20050.25542141,0.00017795,2]
[403619352,1769421044938,-5524.33702603,0.000178,2]
[403619353,1769421044948,-1500.0,0.000178,2]
[403619354,1769421044959,-1100.0,0.000178,6]
[403619355,1769421044968,-500.0,0.00017808,2]
[403619356,1769421044979,-8081.75591382,0.0001782,2]
[403619357,1769421044988,-2602.30488931,0.0001782,2]
[403619358,1769421044997,-25000.0,0.00017821,3]
[403619359,1769421045006,-25000.0,0.0001783,3]
[403619360,1769421045017,-6719.06641575,0.0001783,2]
[403619361,1769421045028,-500.0,0.00017838,2]
[403619362,1769421045038,-246.63108745,0.00017838,2]
[403619363,1769421045047,-500.0,0.00017838,2]
[403619364,1769421045057,-25000.0,0.00017838,3]
[403619365,1769421045066,-1000.0,0.0001784,2]
[403619366,1769421045076,-500.0,0.00017846,2]
[403619367,1769421045085,-25000.0,0.00017847,3]
[403619368,1769421045095,-200.0,0.00017855,2]
[403619369,1769421045105,-200.0,0.00017856,2]
[403619370,1769421045115,-200.0,0.00017856,2]
[403619371,1769421045125,-200.0,0.00017856,2]
[403619372,1769421045135,-25000.0,0.00017856,3]
[403619373,1769421045144,-500.0,0.00017863,2]
[403619374,1769421045155,-25000.0,0.00017865,3]
[403619375,1769421045164,-2000.0,0.00017865,2]
[403619376,1769421045174,-2000.0,0.00017865,2]
[403619377,1769421045183,-2000.0,0.00017865,2]
[403619378,1769421045193,-25000.0,0.00017874,3]
[403619379,1769421045202,-2696.7,0.00017879,2]
[403619380,1769421045212,-25000.0,0.00017882,3]
[403619381,1769421045221,-25000.0,0.00017891,3]
[403619382,1769421045231,-171.76,0.00017899,2]
[403619383,1769421045241,-753.04363975,0.00017899,2]
[403619384,1769421045250,-753.04363973,0.000179,2]
[403619385,1769421045259,-3720.3761322,0.000179,2]
[403619386,1769421045270,-2863.25850664,0.000179,2]
[403619387,1769421045280,-10000.0,0.000179,2]
[403619388,1769421045291,-18194.85928529,0.000179,3]
[403619389,1769421045303,-5000.0,0.000179,2]
[403619390,1769421045313,-753.04363973,0.000179,2]
[403619391,1769421045322,-6138.82009231,0.000179,2]
[403619392,1769421045331,-25000.0,0.000179,3]
[403619393,1769421045341,-1646.0,0.000179,6]
[403619394,1769421045350,-155.97251724,0.000179,2]
[403619395,1769421045359,-1500.0,0.000179,2]
[403619396,1769421045369,-155.97251722,0.000179,2]
[403619398,1769421045378,-155.97251722,0.000179,2]
[403619399,1769421045388,-155.97251722,0.000179,2]
[403619401,1769421045397,-155.97251722,0.000179,2]
[403619402,1769421045407,-155.97251722,0.000179,2]
[403619403,1769421045417,-155.97251722,0.000179,2]
[403619404,1769421045427,-15423.19860128,0.000179,2]
[403619405,1769421045437,-12486.0,0.000179,2]
[403619406,1769421045446,-346.0,0.00017903,2]
[403619407,1769421045456,-560.38,0.00017913,2]
[403619408,1769421045466,-151.0,0.00017916,2]
[403619409,1769421045476,-952.63336648,0.00017916,2]
[403619410,1769421045485,-194.72792766,0.00017916,2]
[403619411,1769421045495,-500.0,0.00017918,2]
[403619412,1769421045505,-2393.0,0.0001796,2]
[403619413,1769421045515,-400.0,0.0001797,2]
[403619414,1769421045525,-400.0,0.0001797,2]
[403619415,1769421045534,-400.0,0.0001797,2]
[403619416,1769421045544,-704.68300704,0.0001797,2]
[403619417,1769421045553,-5800.0,0.00017972,2]
[403619418,1769421045562,-500.0,0.00017972,2]
[403619420,1769421045572,-500.0,0.00017972,2]
[403619421,1769421045581,-534.26205379,0.00017972,2]
[403619422,1769421045591,-500.0,0.00017972,2]
[403619423,1769421045601,-500.0,0.00017972,2]
[403619425,1769421045610,-6962.0,0.00017973,2]
[403619427,1769421045619,-1198.0,0.00017973,2]
[403619429,1769421045629,-235.14,0.00017975,2]
[403619430,1769421045639,-5800.0,0.0001798,2]
[403619431,1769421045650,-150.0,0.0001798,2]
[403619432,1769421045661,-728.42973345,0.0001798,2]
[403619433,1769421045671,-500.0,0.0001798,2]
[403619434,1769421045682,-538.06736554,0.0001798,2]
[403619435,1769421045693,-543.91129536,0.0001798,2]
[403619436,1769421045703,-1301.03665033,0.0001798,2]
[403619437,1769421045712,-1500.0,0.0001798,2]
[403619438,1769421045722,-1500.0,0.0001798,2]
[403619439,1769421045732,-1500.0,0.0001798,2]
[403619440,1769421045742,-1500.0,0.0001798,2]
[403619441,1769421045752,-1500.0,0.0001798,2]
[403619442,1769421045761,-1207.78723917,0.0001798,2]
[403619443,1769421045772,-1005.20347568,0.0001798,2]
[403619444,1769421045782,-500.0,0.00017982,2]
[403619445,1769421045792,-500.0,0.00017989,2]
[403619446,1769421045802,-500.0,0.00017989,2]
[403619447,1769421045811,-500.0,0.00017989,2]
[403619448,1769421045822,-410.87321222,0.00017989,2]
[403619449,1769421045832,-1000.0,0.0001799,2]
[403619450,1769421045841,-573.85782955,0.0001799,2]
[403619451,1769421045851,-573.85782955,0.0001799,2]
[403619452,1769421045862,-1352.81,0.00017994,2]
[403619453,1769421045872,-500.0,0.00017994,2]
[403619454,1769421045882,-500.0,0.00017994,2]
[403619455,1769421045892,-628.83807306,0.00017994,2]
[403619456,1769421045904,-500.0,0.00017994,2]
[403619457,1769421045916,-500.0,0.00017994,2]
[403619458,1769421045926,-500.0,0.00017994,2]
[403619459,1769421045935,-500.0,0.00017994,2]
[403619460,1769421045945,-500.0,0.00017994,2]
[403619461,1769421045954,-500.0,0.00017994,2]
[403619462,1769421045964,-39237.1599599,0.00017995,2]
[403619463,1769421045973,-2581.4272379,0.00017995,2]
[403619464,1769421045983,-276764.5139538,0.00017995,2]
[403619465,1769421045993,-12457.5376418,0.00017995,2]
[403619466,1769421046002,-500.0,0.00017997,2]
[403619467,1769421046012,-500.0,0.00017997,2]
[403619468,1769421046021,-500.0,0.00017997,2]
[403619469,1769421046031,-287.69959162,0.00017998,2]
[403619470,1769421046040,-246.13924238,0.00017999,2]
[403619471,1769421046049,-259.76510091,0.00017999,2]
[403619472,1769421046060,-405.47708721,0.00017999,2]
[403619473,1769421046070,-290.41219346,0.00017999,2]
[403619474,1769421046079,-331.89964967,0.00017999,2]
[403619475,1769421046089,-518.07460941,0.00017999,2]
[403619476,1769421046099,-500.0,0.00017999,2]
[403619477,1769421046109,-500.0,0.00017999,2]
[403619478,1769421046119,-500.0,0.00017999,2]
[403619479,1769421046128,-500.0,0.00017999,2]
[403619480,1769421046138,-500.0,0.00017999,2]
[403619481,1769421046148,-500.0,0.00017999,2]
[403619482,1769421046157,-500.0,0.00017999,2]
[403619483,1769421046167,-500.0,0.00017999,2]
[403619484,1769421046176,-358.82675413,0.00017999,2]
[403619485,1769421046185,-300.0,0.00017999,2]
[403619486,1769421046194,-1352.81,0.00017999,2]
[403619487,1769421046203,-1352.81,0.00017999,2]
[403619488,1769421046212,-1352.81,0.00017999,2]
[403619489,1769421046221,-1352.81,0.00017999,2]
[403619490,1769421046230,-1352.81,0.00017999,2]
[403619491,1769421046239,-1352.81,0.00017999,2]
[403619492,1769421046248,-1352.81,0.00017999,2]
[403619493,1769421046258,-1352.81,0.00017999,2]
[403619494,1769421046267,-1352.81,0.00017999,2]
[403619495,1769421046276,-1352.81,0.00017999,2]
[403619496,1769421046284,-1352.81,0.00017999,2]
[403619497,1769421046294,-1352.81,0.00017999,2]
[403619498,1769421046302,-1352.81,0.00017999,2]
[403619499,1769421046311,-1352.81,0.00017999,2]
[403619500,1769421046320,-1352.81,0.00017999,2]
[403619501,1769421046329,-1352.81,0.00017999,2]
[403619502,1769421046338,-1352.81,0.00017999,2]
[403619503,1769421046347,-1352.81,0.00017999,2]
[403619504,1769421046356,-1352.81,0.00017999,2]
[403619505,1769421046364,-1352.81,0.00017999,2]
[403619506,1769421046374,-1352.83561324,0.00017999,2]
[403619507,1769421046383,-500.0,0.00017999,2]
[403619508,1769421046393,-500.0,0.00017999,2]
[403619509,1769421046402,-500.0,0.00017999,2]
[403619510,1769421046411,-588.82402791,0.00017999,2]
[403619511,1769421046421,-300.0,0.00017999,2]
[403619512,1769421046430,-300.0,0.00017999,2]
[403619513,1769421046440,-300.0,0.00017999,2]
[403619514,1769421046449,-666.0,0.00017999,2]
[403619515,1769421046458,-531.00846507,0.00017999,2]
[403619516,1769421046468,-500.0,0.00017999,2]
[403619517,1769421046477,-500.0,0.00017999,2]
[403619518,1769421046486,-500.0,0.00017999,2]
[403619519,1769421046496,-500.0,0.00017999,2]
[403619520,1769421046506,-500.0,0.00017999,2]
[403619521,1769421046515,-500.0,0.00017999,2]
[403619522,1769421046524,-500.0,0.00017999,2]
[403619523,1769421046533,-500.0,0.00017999,2]
[403619524,1769421046543,-500.0,0.00017999,2]
[403619525,1769421046552,-300.0,0.00017999,2]
[403619526,1769421046563,-666.0,0.00017999,2]
[403619527,1769421046572,-150.0,0.00017999,2]
[403619528,1769421046582,-4112657.48387004,0.00018,2]
[403619530,1769421047279,-50464.77679171,0.00018,2]
[403619531,1769421047290,-730.0,0.00018,2]
[403619532,1769421047302,-1847.29706136,0.00018,2]
[403619533,1769421047358,-500.0,0.00015479,2]
[403619534,1769421047368,-150.0,0.00015534,2]
[403619535,1769421047378,-227890.72411889,0.00018,2]
[403619536,1769421047390,-495.68719811,0.00018,2]
[403619537,1769421047401,-732.18335078,0.00018,2]
[403619538,1769421047417,-56338.72825719,0.00018,2]
[403619539,1769421047448,-500.0,0.00015534,2]
[403619540,1769421047458,-150.0,0.00015589,2]
[403619541,1769421047471,-409.44336652,0.00018,2]
[403619542,1769421047485,-348.7328232,0.00018,2]
[403619543,1769421048214,-444.09383446,0.00015368,2]
[403619544,1769421048253,-55.90616554,0.00015368,2]
[403619545,1769421048263,-499.96384946,0.00015589,2]
[403619546,1769421048997,-0.03615054,0.00015589,2]
[403619547,1769421049008,-150.0,0.00015643,2]
[403619548,1769421049018,-423.83990278,0.00015643,2]
[403619549,1769421049037,-76.16009722,0.00015643,2]
[403619550,1769421049047,-150.0,0.00015698,2]
[403619551,1769421049057,-500.0,0.00015698,2]
[403619552,1769421049066,-250.0,0.00015753,2]
[403619553,1769421049075,-500.0,0.00015753,2]
[403619554,1769421049085,-307.0,0.00015808,2]
[403619555,1769421049095,-150.0,0.00016438,2]
[403619556,1769421049109,-150.0,0.00016493,2]
[403619557,1769421049118,-154.14477787,0.00016548,2]
[403619558,1769421049129,-484.73,0.00017041,2]
[403619559,1769421049139,-1114.98,0.00017178,2]
[403619560,1769421049148,-359.87,0.00017178,2]
[403619561,1769421049158,-150.0,0.00017178,2]
[403619562,1769421049167,-2462.49,0.00017178,2]
[403619563,1769421049177,-344.46,0.00017178,2]
[403619564,1769421049187,-150.0,0.00017178,2]
[403619565,1769421049197,-150.0,0.00017178,2]
[403619566,1769421049206,-468.76,0.00017178,2]
[403619567,1769421049217,-862.61109266,0.00018,2]
[403619568,1769421049229,-92203.29277728,0.00018,2]
[403619569,1769421049274,-155.649,0.00017386,2]
[403619570,1769421049284,-4155.74778493,0.00018,2]
[403619571,1769421050508,-525.04884353,0.00018,2]
[403619580,1769421097273,2000.0,0.00014798,2]
[403619610,1769421938957,-258.37652492,0.00013935,2]
[403619611,1769421939102,-168.30347508,0.00013935,2]
[403619612,1769421939129,-20.16217907,0.00013935,2]
[403619632,1769422237851,-166.66,0.00013009,2]
[403619633,1769422237862,-166.66,0.00013283,2]
[403619634,1769422237873,-166.66,0.00013557,2]
[403619635,1769422237884,-656.34,0.00013711,2]
[403619636,1769422237894,-1155.63412288,0.00013831,2]
[403619637,1769422237906,-166.66,0.00013831,2]
[403619638,1769422237917,-167.0,0.00013934,2]
[403619639,1769422237928,-1200.0,0.00013934,2]
[403619640,1769422237938,-2161.66858753,0.00013949,2]
[403619641,1769422237960,-403.76141247,0.00013949,2]
[403619642,1769422237971,-166.66,0.00014105,2]
[403619643,1769422237982,-380.55858753,0.0001431,2]
[403619644,1769422238016,-2119.44141247,0.0001431,2]
[403619645,1769422238030,-2500.0,0.0001431,2]
[403619646,1769422238041,-2500.0,0.0001431,2]
[403619647,1769422238052,-2500.0,0.0001431,2]
[403619648,1769422238063,-2134.18401833,0.0001431,2]
[403619649,1769422238075,-487.0,0.00014357,2]
[403619650,1769422238085,-166.66,0.00014379,2]
[403619651,1769422238098,-599.96498292,0.00014493,2]
[403619652,1769422238110,-151.0,0.00014501,2]
[403619653,1769422238122,-150.0,0.00014503,2]
[403619654,1769422238135,-1000.0,0.00014503,2]
[403619655,1769422238147,-1000000.0,0.00014504,2]
[403619656,1769422238159,-4835.95,0.00014593,2]
[403619657,1769422238172,-200.0,0.00014607,2]
[403619658,1769422238184,-500.0,0.00014607,2]
[403619659,1769422238195,-500.0,0.00014607,2]
[403619660,1769422238207,-192.8876958,0.00014607,2]
[403619661,1769422238218,-500.0,0.00014607,2]
[403619662,1769422238229,-500.0,0.00014607,2]
[403619663,1769422238241,-151.0,0.00014607,2]
[403619664,1769422238253,-151.0,0.00014607,2]
[403619665,1769422238266,-151.0,0.00014607,2]
[403619666,1769422238280,-151.0,0.00014607,2]
[403619667,1769422238292,-151.0,0.00014607,2]
[403619668,1769422238306,-151.0,0.00014607,2]
[403619669,1769422238318,-151.0,0.00014607,2]
[403619670,1769422238330,-151.0,0.00014607,2]
[403619671,1769422238343,-151.0,0.00014607,2]
[403619673,1769422238356,-151.0,0.00014607,2]
[403619675,1769422238368,-151.0,0.00014607,2]
[403619677,1769422238380,-1000.0,0.00014615,2]
[403619679,1769422238393,-4835.95,0.00014616,2]
[403619681,1769422238405,-9043.23,0.00014616,2]
[403619683,1769422238417,-1000.0,0.00014638,2]
[403619685,1769422238430,-1000.0,0.00014638,2]
[403619687,1769422238441,-4835.95,0.00014639,2]
[403619689,1769422238452,-500.0,0.00014645,2]
[403619691,1769422238464,-500.0,0.00014645,2]
[403619694,1769422238480,-500.0,0.00014645,2]
[403619696,1769422238493,-492.88724766,0.00014645,2]
[403619698,1769422238504,-2565.43,0.00014646,2]
[403619700,1769422238514,-4835.95,0.00014662,2]
[403619702,1769422238526,-4835.95,0.00014685,2]
[403619704,1769422238538,-4835.95,0.00014708,2]
[403619706,1769422238549,-441.0,0.00014713,2]
[403619708,1769422238560,-4835.95,0.00014731,2]
[403619710,1769422238571,-4835.95,0.00014754,2]
[403619711,1769422238581,-4835.95,0.00014777,2]
[403619714,1769422238594,-1600.0,0.000148,5]
[403619716,1769422238605,-4835.95,0.000148,2]
[403619718,1769422238616,-4835.95,0.00014823,2]
[403619720,1769422238627,-4835.95,0.00014846,2]
[403619722,1769422238639,-4835.95,0.00014869,2]
[403619724,1769422238650,-695.0,0.00014877,2]
[403619726,1769422238660,-4835.95,0.00014893,2]
[403619728,1769422238671,-3300.0,0.000149,5]
[403619730,1769422238682,-4835.95,0.00014916,2]
[403619732,1769422238693,-500.0,0.00014919,2]
[403619734,1769422238704,-4835.95,0.00014939,2]
[403619736,1769422238715,-4835.95,0.00014962,2]
[403619738,1769422238727,-4835.95,0.00014985,2]
[403619740,1769422238738,-13036.22912534,0.00014991,2]
[403619742,1769422238749,-2500.0,0.00015,2]
[403619744,1769422238760,-4615.43705625,0.00015008,2]
[403619746,1769422238775,-220.51294375,0.00015008,2]
[403619748,1769422238786,-291.91,0.00015008,2]
[403619750,1769422238796,-1031.28426179,0.00015024,2]
[403619752,1769422238808,-155.85905549,0.00015024,2]
[403619754,1769422238824,-684.69940328,0.00015024,2]
[403619760,1769422238869,-114.49653313,0.00015024,2]
[403619762,1769422238879,-409.40059961,0.00015031,2]
[403619774,1769422239009,-664.38407937,0.00015031,2]
[403619777,1769422239032,-1403.84725605,0.00015031,2]
[403619839,1769422239898,-2358.31806497,0.00015031,2]
[403619840,1769422239909,-152.16,0.00015088,2]
[403619841,1769422239919,-208.55,0.00015088,2]
[403619842,1769422239928,-573.85782955,0.00015089,2]
[403619843,1769422239939,-500.0,0.00015099,2]
[403619844,1769422239949,-500.0,0.00015099,2]
[403619845,1769422239960,-505.8124625,0.00015099,2]
[403619846,1769422239970,-500.0,0.00015099,2]
[403619847,1769422239980,-500.0,0.00015099,2]
[403619848,1769422239990,-500.0,0.00015099,2]
[403619849,1769422240001,-500.0,0.00015099,2]
[403619850,1769422240011,-500.0,0.00015099,2]
[403619851,1769422240021,-500.0,0.00015099,2]
[403619852,1769422240031,-646.91101847,0.00015099,2]
[403619853,1769422240041,-500.0,0.00015099,2]
[403619854,1769422240051,-500.0,0.00015099,2]
[403619855,1769422240061,-500.0,0.00015099,2]
[403619856,1769422240071,-500.0,0.00015099,2]
[403619857,1769422240082,-500.0,0.00015099,2]
[403619858,1769422240094,-500.0,0.00015099,2]
[403619859,1769422240103,-500.0,0.00015099,2]
[403619860,1769422240114,-500.0,0.00015099,2]
[403619861,1769422240125,-500.0,0.00015099,2]
[403619862,1769422240135,-500.0,0.00015099,2]
[403619863,1769422240145,-500.0,0.00015099,2]
[403619864,1769422240155,-500.0,0.00015099,2]
[403619865,1769422240166,-500.0,0.00015099,2]
[403619866,1769422240176,-500.0,0.00015099,2]
[403619867,1769422240186,-500.0,0.00015099,2]
[403619868,1769422240197,-500.0,0.00015099,2]
[403619869,1769422240209,-500.0,0.00015099,2]
[403619870,1769422240220,-500.0,0.00015099,2]
[403619871,1769422240232,-562.88447202,0.00015099,2]
[403619872,1769422240242,-500.0,0.00015099,2]
[403619873,1769422240252,-500.0,0.00015099,2]
[403619874,1769422240262,-512.6177601,0.00015099,2]
[403619875,1769422240272,-500.0,0.00015099,2]
[403619876,1769422240282,-500.0,0.00015099,2]
[403619877,1769422240292,-500.0,0.00015099,2]
[403619878,1769422240304,-495.25985099,0.00015099,2]
[403619879,1769422240315,-500.0,0.00015099,2]
[403619880,1769422240325,-500.0,0.00015099,2]
[403619881,1769422240336,-500.0,0.00015099,2]
[403619882,1769422240348,-500.0,0.00015099,2]
[403619883,1769422240358,-419.17906701,0.00015099,2]
[403619884,1769422240369,-1197.79,0.00015099,2]
[403619885,1769422240381,-1135.16674727,0.00015099,5]
[403619886,1769422240391,-500.0,0.00015099,2]
[403619887,1769422240400,-500.0,0.00015099,2]
[403619888,1769422240409,-500.0,0.00015099,2]
[403619889,1769422240420,-500.0,0.00015099,2]
[403619890,1769422240430,-500.0,0.00015099,2]
[403619891,1769422240440,-500.0,0.00015099,2]
[403619892,1769422240449,-500.0,0.00015099,2]
[403619893,1769422240459,-500.0,0.00015099,2]
[403619894,1769422240469,-500.0,0.00015099,2]
[403619895,1769422240480,-500.0,0.00015099,2]
[403619897,1769422240490,-500.0,0.00015099,2]
[403619898,1769422240500,-500.0,0.00015099,2]
[403619899,1769422240510,-646.08605547,0.00015099,2]
[403619900,1769422240520,-500.0,0.00015099,2]
[403619901,1769422240530,-500.0,0.00015099,2]
[403619902,1769422240540,-500.0,0.00015099,2]
[403619903,1769422240550,-500.0,0.00015099,2]
[403619904,1769422240560,-500.0,0.00015099,2]
[403619905,1769422240569,-500.0,0.00015099,2]
[403619906,1769422240579,-500.0,0.00015099,2]
[403619907,1769422240588,-152.86742029,0.00015099,2]
[403619908,1769422240598,-500.0,0.00015099,2]
[403619909,1769422240608,-500.0,0.00015099,2]
[403619910,1769422240618,-500.0,0.00015099,2]
[403619911,1769422240629,-500.0,0.00015099,2]
[403619912,1769422240638,-507.28795943,0.00015099,2]
[403619913,1769422240648,-500.0,0.00015099,2]
[403619914,1769422240658,-500.0,0.00015099,2]
[403619915,1769422240668,-504.91738669,0.00015099,2]
[403619916,1769422240678,-502.3637346,0.00015099,2]
[403619917,1769422240690,-500.0,0.00015099,2]
[403619918,1769422240701,-500.0,0.00015099,2]
[403619919,1769422240711,-500.0,0.00015099,2]
[403619920,1769422240721,-500.0,0.00015099,2]
[403619921,1769422240730,-200.0,0.00015155,2]
[403619922,1769422240740,-500.0,0.00015155,2]
[403619923,1769422240750,-500.0,0.00015193,2]
[403619924,1769422240760,-1000.0,0.000152,2]
[403619925,1769422240771,-309.94327877,0.000152,2]
[403619926,1769422240782,-599.9649829,0.0001529,2]
[403619927,1769422240791,-500.0,0.00015299,2]
[403619928,1769422240801,-500.0,0.00015299,2]
[403619929,1769422240811,-500.0,0.00015299,2]
[403619930,1769422240823,-504.28373524,0.00015299,2]
[403619931,1769422240834,-500.0,0.00015299,2]
[403619932,1769422240844,-500.0,0.00015299,2]
[403619933,1769422240854,-500.0,0.00015299,2]
[403619934,1769422240863,-500.0,0.00015299,2]
[403619935,1769422240873,-474.17198166,0.00015299,2]
[403619936,1769422240883,-507.58212227,0.00015299,2]
[403619937,1769422240893,-500.0,0.00015299,2]
[403619938,1769422240902,-500.0,0.00015299,2]
[403619939,1769422240913,-500.0,0.00015299,2]
[403619940,1769422240923,-500.0,0.00015299,2]
[403619941,1769422240932,-500.0,0.00015299,2]
[403619942,1769422240942,-500.0,0.00015299,2]
[403619943,1769422240952,-500.0,0.00015299,2]
[403619944,1769422240962,-500.0,0.00015299,2]
[403619945,1769422240972,-500.0,0.00015299,2]
[403619946,1769422240985,-500.0,0.00015299,2]
[403619947,1769422240995,-500.0,0.00015299,2]
[403619948,1769422241005,-151.89329206,0.000153,2]
[403619949,1769422241014,-521.97630178,0.000153,2]
[403619950,1769422241024,-13036.22912528,0.00015314,2]
[403619951,1769422241034,-1680.0,0.00015327,2]
[403619952,1769422241043,-500.0,0.00015328,2]
[403619953,1769422241053,-237.36510389,0.00015328,2]
[403619954,1769422241063,-2565.43,0.00015343,2]
[403619955,1769422241076,-246.63108745,0.00015368,2]
[403619956,1769422241086,-500.0,0.00015368,2]
[403619957,1769422241096,-500.0,0.00015368,2]
[403619958,1769422241105,-500.0,0.00015368,2]
[403619959,1769422241115,-500.0,0.00015368,2]
[403619960,1769422241125,-500.0,0.00015368,2]
[403619961,1769422241136,-500.0,0.00015368,2]
[403619962,1769422241146,-1197.79,0.00015373,2]
[403619963,1769422241155,-656.34,0.00015425,2]
[403619964,1769422241165,-577.47077711,0.00015467,2]
[403619965,1769422241174,-1031.28426178,0.00015503,2]
[403619966,1769422241184,-347.0,0.00015555,2]
[403619967,1769422241194,-246.0,0.00015555,2]
[403619968,1769422241203,-255.0,0.0001562,2]
[403619969,1769422241213,-13036.22912528,0.00015637,2]
[403619970,1769422241223,-1197.79,0.00015647,2]
[403619971,1769422241233,-955.05499187,0.00015743,2]
[403619972,1769422241243,-1000.0,0.000158,2]
[403619973,1769422241253,-1197.79,0.00015921,2]
[403619974,1769422241262,-13036.22912528,0.00015961,2]
[403619975,1769422241272,-1031.28426178,0.00015983,2]
[403619976,1769422241281,-2565.43,0.00016041,2]
[403619977,1769422241291,-969.46,0.00016082,2]